Cogmind - Beta 13 @@@ ROGUE MODE // 2024.06.08 @ 02:16:54 Player: MarKhan Result: Destroyed by S-27 Virus with Autogun Performance ------------- Evolutions (5) 2500 Regions Visited (8) 1600 Robots Destroyed (31) 155 Value Destroyed (963) 963 Prototype IDs (7) 140 Alien Tech Used (0) 0 Bonus (500) 500 TOTAL SCORE: 5858 Bonus ------- Entered DSFs 500 Cogmind --------- Core Integrity 0/1000 Matter 140/300 Energy 95/100 System Corruption 2% Temperature Cool (0) Movement Core (50) Location -5/Factory Parts ------- > --- POWER (1) -------- (None) > --- PROPULSION (6) --- (None) > --- UTILITY (8) ------ Advanced Visual Processing Unit Improved Signal Interpreter Advanced Terrain Scan Processor Advanced Terrain Scan Processor Hacking Suite Advanced Hacking Suite > --- WEAPON (2) ------- Lance > --- INVENTORY (5) ---- Micro Fission Core Micro Fission Core Advanced Heat Sink Advanced Sensor Array Peak State ------------ > --- POWER ------------ Micro Fission Core > --- PROPULSION ------- Nuclear Pulse Thruster Nuclear Pulse Thruster Nuclear Pulse Thruster Nuclear Pulse Thruster Nuclear Pulse Thruster Nuclear Pulse Thruster > --- UTILITY ---------- Advanced Visual Processing Unit Improved Signal Interpreter Advanced Terrain Scan Processor Advanced Terrain Scan Processor Hacking Suite Hacking Suite Advanced Hacking Suite System Shield > --- WEAPON ----------- Smartbomb Launcher > --- INVENTORY -------- Micro Fission Core Micro Fission Core Advanced Heat Sink Medium Storage Unit Advanced Sensor Array [Rating: 79] Favorites ----------- Power Light Nuclear Core Engine Improved Ion Engine Power Core Light Nuclear Core Propulsion Light Treads Treads Light Treads Flight Unit Nuclear Pulse Thruster Utility Small Storage Unit Device Improved Terrain Scanner Storage Small Storage Unit Processor Advanced Terrain Scan Processor Hackware Hacking Suite Protection Improved Light Armor Plating Weapon Scythe Energy Gun EM Pulse Gun Energy Cannon EM Pulse Cannon Ballistic Gun Assault Rifle Launcher Smartbomb Launcher Impact Weapon Great Maul Slashing Weapon Scythe Piercing Weapon Lance Build | -11 -10 -9 -9 -8 -7 -6 -6 -5 ------- Run | Yrd Mat Mat Min Mat Fac Fac DSF Fac Slots Evolved 10 | . . 2 . 2 2 2 . 2 Power . | . . . . . . . . . Propulsion 4 | . . 1 . . 2 . . 1 Utility 6 | . . 1 . 2 . 2 . 1 Weapon . | . . . . . . . . . Parts Attached 76 | 7 2 6 5 11 13 3 . 29 Power 12 | 1 1 2 1 1 2 . . 4 Engine 4 | 1 1 1 . 1 . . . . Core 8 | . . 1 1 . 2 . . 4 Reactor . | . . . . . . . . . Propulsion 28 | 2 . . 3 3 6 1 . 13 Treads 2 | 2 . . . . . . . . Leg . | . . . . . . . . . Wheel . | . . . . . . . . . Hover . | . . . . . . . . . Flight 26 | . . . 3 3 6 1 . 13 Utility 22 | 2 . 1 1 5 4 2 . 7 Device 6 | 1 . 1 . 2 . . . 2 Storage 3 | 1 . . . . . . . 2 Processor 7 | . . . 1 3 1 . . 2 Hackware 5 | . . . . . 2 2 . 1 Protection 1 | . . . . . 1 . . . Artifact . | . . . . . . . . . Weapon 14 | 2 1 3 . 2 1 . . 5 Energy Gun 2 | 1 1 . . . . . . . Energy Cannon 1 | . . . . 1 . . . . Ballistic Gun 4 | 1 . 3 . . . . . . Ballistic Cannon . | . . . . . . . . . Launcher 3 | . . . . . . . . 3 Special Weapon . | . . . . . . . . . Impact Weapon 1 | . . . . . 1 . . . Slashing Weapon 2 | . . . . 1 . . . 1 Piercing Weapon 1 | . . . . . . . . 1 Special Melee Weapon . | . . . . . . . . . Unidentified Prototypes 3 | . . . . 1 1 . . 1 Corrupted Parts 1 | . . . . 1 . . . . System Corruption 3 | . . . . 3 . . . . Parts Lost 33 | . 2 1 1 . 6 . . 23 Power 3 | . 1 . . . 1 . . 1 Propulsion 21 | . . 1 . . 3 . . 17 Utility 7 | . . . 1 . 2 . . 4 Weapon 2 | . 1 . . . . . . 1 Highest Loss Streak 13 | . 2 1 1 . 6 . . 13 To Critical Strikes . | . . . . . . . . . Average Slot Usage (%) 84 | . 96 80 73 96 79 95 100 83 Engine 5 | . 12 10 5 5 1 . . . Core 2 | . . . 6 4 2 6 6 4 Treads 8 | . 28 15 11 6 . . . . Flight 14 | . . . 3 20 25 33 33 26 Device 10 | . 14 21 14 16 3 . . . Storage 6 | . 14 11 11 9 1 . . 1 Processor 11 | . . . 1 18 21 20 20 20 Hackware 6 | . . . . . 7 22 26 21 Energy Gun 3 | . 12 8 . . . . . . Ballistic Gun 8 | . 14 13 22 10 . . . . Impact Weapon 1 | . . . . . 2 6 6 2 Slashing Weapon 2 | . . . . 1 7 6 6 2 Naked Turns . | . . . . . . . . . Heaviest Build 21 | 13 15 20 20 21 14 11 11 21 Greatest Support 40 | 40 40 40 20 20 23 29 29 36 Greatest Overweight (x) 4 | . . . 4 4 1 . . 1 Average Overweight (x) . | . . . . . . . . . Largest Inventory Capacity 10 | 8 8 8 8 8 8 5 5 10 Average Capacity 7 | 6 8 8 8 8 5 5 5 6 Most Carried 10 | 6 8 8 8 8 8 5 5 10 Average Carried 6 | 3 6 7 7 7 5 4 5 5 Final Capacity 8 | 8 8 8 8 8 5 5 5 5 Final Carried 8 | 5 8 8 8 8 5 5 5 4 Class Distribution -------------------- 55% | Mutant 25% | Hacker-Sprinter 10% | Scavenger-Skirmisher 7% | Scavenger-Scout Dominant Class ---------------- Mutant | -10/Materials Mutant | -9/Materials Mutant | -9/Mines Scavenger-Skirmisher | -8/Materials Mutant | -7/Factory Mutant | -6/Factory Hacker-Sprinter | -6/DSF Hacker-Sprinter | -5/Factory Resources | -11 -10 -9 -9 -8 -7 -6 -6 -5 ----------- Run | Yrd Mat Mat Min Mat Fac Fac DSF Fac Matter Collected 1122 | 243 76 258 135 27 172 . . 211 Remotely . | . . . . . . . . . Salvage Created 965 | 20 119 301 130 27 98 . . 270 Parts 57 | 4 4 15 8 4 6 . . 16 Haulers Intercepted . | . . . . . . . . . Recyclers Shooed 4 | . . 4 . . . . . . Parts Field Recycled . | . . . . . . . . . Retrieved Matter . | . . . . . . . . . Parts Self-Destructed . | . . . . . . . . . Prevented . | . . . . . . . . . Kills | -11 -10 -9 -9 -8 -7 -6 -6 -5 ------- Run | Yrd Mat Mat Min Mat Fac Fac DSF Fac Combat Hostiles Destroyed 23 | . 2 5 5 . 2 . . 9 Melee 6 | . . . . . 2 . . 4 Guns 12 | . 2 5 5 . . . . . AOE 5 | . . . . . . . . 5 Classes Destroyed 7 | 1 2 2 1 . 1 . . . Worker 1 | . . . . . 1 . . . Tunneler 1 | 1 . . . . . . . . Operator 3 | . 1 1 . . 1 . . . Watcher 3 | . . 1 . 1 . . . 1 Swarmer 11 | . . . 3 . 2 . . 6 Grunt 10 | . 2 3 2 . . . . 3 Sentry 2 | . . 2 . . . . . . Best Kill Streak 5 | 1 3 2 3 1 2 . . 5 Combat Bots Only 5 | . 2 2 3 . 2 . . 5 Max Kills in Single Turn 2 | 1 1 1 1 1 1 . . 2 Gunslinging . | . . . . . . . . . Exploded 2 | . . . . . . . . 2 Melee 1 | . . . . . 1 . . 1 Uniques/NPCs Destroyed . | . . . . . . . . . Combat | -11 -10 -9 -9 -8 -7 -6 -6 -5 -------- Run | Yrd Mat Mat Min Mat Fac Fac DSF Fac Hostile Shots Fired 361 | . 18 21 46 . 56 . 5 215 Missed 137 | . 2 8 13 . 34 . 4 76 Damage Taken 3783 | . 220 267 338 . 677 . 53 2228 Core 1629 | . 26 44 63 . 481 . 6 1009 Absorbed by Shields 36 | . . . . . . . . 36 Regen/Repaired (Parts) 2 | . . . . 2 . . . . Core Remaining (%) 82 | 100 89 . 73 100 31 . 99 . Volleys Fired 65 | 1 14 28 15 3 . . . 4 Largest 2 | 2 2 2 2 2 . . . 1 Hottest 86 | 60 60 63 46 86 . . . 46 Shots Fired 123 | 2 26 55 30 6 . . . 4 Gun 118 | 2 26 55 30 5 . . . . Cannon 1 | . . . . 1 . . . . Launcher 4 | . . . . . . . . 4 Special . | . . . . . . . . . Kinetic 81 | 1 14 31 30 5 . . . . Thermal . | . . . . . . . . . Explosive 4 | . . . . . . . . 4 Electromagnetic 38 | 1 12 24 . 1 . . . . Robot Hit Streak 14 | 1 5 14 4 2 . . . 5 Robot Miss Streak 7 | 1 2 4 7 1 . . . . Penetration Max . | . . . . . . . . . Secondary Targets 3 | . . 1 2 . . . . . Max Gunslinging Chain 1 | . . 1 1 . . . . . Shots Hit Robots 87 | 1 16 33 17 4 6 . . 10 Core Hits 46 | 1 6 16 8 1 2 . . 12 Critical Kills . | . . . . . . . . . Critical Parts Destroyed . | . . . . . . . . . Critical Strikes 1 | . . . . . . . . 1 Impale 1 | . . . . . . . . 1 Melee Attacks 44 | . . . . 2 24 . . 18 Impact 5 | . . . . . 1 . . 4 Slashing 30 | . . . . 2 23 . . 5 Piercing 9 | . . . . . . . . 9 Sneak Attacks 2 | . . . . . 2 . . . Combat Hostiles . | . . . . . . . . . Follow-up Attacks 1 | . . . . . . . . 1 Damage Inflicted 2049 | 15 211 438 300 72 270 . . 743 Guns 985 | 15 211 435 292 32 . . . . Cannons 40 | . . . . 40 . . . . Explosions 555 | . . . . . . . . 555 Melee 458 | . . . . . 270 . . 188 Ramming 11 | . . 3 8 . . . . . Kinetic 716 | 15 136 241 292 32 . . . . Thermal 100 | . . . . . . . . 100 Explosive 455 | . . . . . . . . 455 Electromagnetic 309 | . 75 194 . 40 . . . . Impact 33 | . . . . . . . . 33 Slashing 270 | . . . . . 270 . . . Piercing 155 | . . . . . . . . 155 Highest Corruption 3 | . . . . 3 . . . 2 Average Corruption 2 | . . . . 3 . . . 2 Corruption Purged . | . . . . . . . . . Corruption Blocked . | . . . . . . . . . Effects 5 | . . . . 3 . . . 2 Message Errors 2 | . . . . 1 . . . 1 Energy Discharges 1 | . . . . 1 . . . . Parts Rejected 1 | . . . . . . . . 1 Data Loss (major) 1 | . . . . 1 . . . . Overload Shots . | . . . . . . . . . Overflow Damage 79 | . . . . . 77 . . 2 Projectiles . | . . . . . . . . . Explosions . | . . . . . . . . . Melee 79 | . . . . . 77 . . 2 Knockbacks . | . . . . . . . . . Impact . | . . . . . . . . . Kinetic . | . . . . . . . . . Secondary . | . . . . . . . . . Self-Inflicted Damage 152 | . . 87 . . . . . 65 Shots 2 | . . 1 . . . . . 1 Rammed 3 | . . 2 1 . . . . . Targets Rammed 3 | . . 2 1 . . . . . Kicked . | . . . . . . . . . Crushed . | . . . . . . . . . Highest Temperature 217 | . 63 12 34 38 217 . . 213 Average Temperature 59 | . 41 3 8 23 94 . . 76 Received Heat Transfer 525 | . 162 69 117 . 18 . . 159 Effects 1 | . . . . . . . . 1 Energy Bleed 1 | . . . . . . . . 1 Siege Activations . | . . . . . . . . . Robots Corrupted . | . . . . . . . . . Combat Hostiles . | . . . . . . . . . Parts Fried . | . . . . . . . . . Impact Corruptions . | . . . . . . . . . Robots Melted . | . . . . . . . . . Combat Hostiles . | . . . . . . . . . Parts Melted . | . . . . . . . . . Heat Transferred 150 | . . . . . . . . 150 Parts Sabotaged . | . . . . . . . . . Parts Stolen . | . . . . . . . . . Parts Stripped . | . . . . . . . . . Power Chain Reactions . | . . . . . . . . . Alert | -11 -10 -9 -9 -8 -7 -6 -6 -5 ------- Run | Yrd Mat Mat Min Mat Fac Fac DSF Fac Peak Influence 366 | 5 75 297 167 84 355 96 67 366 Initial 93 | . 3 31 42 65 37 93 67 35 Average 121 | 1 36 193 91 69 129 93 67 163 Maximum Alert Level 1 | . . 1 . . 1 . . 1 Low Security (%) 74 | 100 100 48 100 100 71 100 100 53 Level 1 25 | . . 51 . . 28 . . 46 Level 2 . | . . . . . . . . . Level 3 . | . . . . . . . . . Level 4 . | . . . . . . . . . Level 5 . | . . . . . . . . . High Security . | . . . . . . . . . Max Security . | . . . . . . . . . Squads Dispatched 12 | . 2 1 . . 8 . 1 . Investigation 5 | . . . . . 5 . . . Extermination . | . . . . . . . . . Reinforcement 7 | . 2 1 . . 3 . 1 . Assault . | . . . . . . . . . Garrison . | . . . . . . . . . Intercept . | . . . . . . . . . Searches Triggered . | . . . . . . . . . Construction Impeded . | . . . . . . . . . Haulers Reinforced . | . . . . . . . . . Active Scanning Responses . | . . . . . . . . . Cargo Convoy Interrupts . | . . . . . . . . . Stealth | -11 -10 -9 -9 -8 -7 -6 -6 -5 --------- Run | Yrd Mat Mat Min Mat Fac Fac DSF Fac Distress Signals 3 | . . 3 . . . . . . Communications Jammed . | . . . . . . . . . Distress Signals . | . . . . . . . . . Times Spotted 79 | . 4 15 6 1 22 . 3 28 Peak Tracking Total 10 | . 2 4 3 1 8 . 3 10 Tactical Retreats 11 | . . . 1 . 5 . . 5 Traps | -11 -10 -9 -9 -8 -7 -6 -6 -5 ------- Run | Yrd Mat Mat Min Mat Fac Fac DSF Fac Traps Triggered 3 | . . . . . . . . 3 Indirectly . | . . . . . . . . . Trap Hack Attempts . | . . . . . . . . . Triggered . | . . . . . . . . . Disarmed 4 | . . . . . . . . 4 Reprogrammed . | . . . . . . . . . Reused . | . . . . . . . . . Traps Extracted . | . . . . . . . . . Installed . | . . . . . . . . . Triggered . | . . . . . . . . . Machines | -11 -10 -9 -9 -8 -7 -6 -6 -5 ---------- Run | Yrd Mat Mat Min Mat Fac Fac DSF Fac Machines Disabled 7 | . 1 3 . . . . . 3 Max in Single Turn 3 | . 1 3 . . . . . 2 Garrison Access 1 | . . . . . . . . 1 Machines Repaired . | . . . . . . . . . Machines Dismantled . | . . . . . . . . . Machines Sabotaged . | . . . . . . . . . Overloaded Fab Kills . | . . . . . . . . . Hacking | -11 -10 -9 -9 -8 -7 -6 -6 -5 --------- Run | Yrd Mat Mat Min Mat Fac Fac DSF Fac Machines Accessed 24 | . 1 4 . 3 8 1 . 7 Terminals 18 | . 1 3 . 2 7 1 . 4 Fabricators . | . . . . . . . . . Repair Stations 2 | . . . . 1 . . . 1 Recycling Units 2 | . . . . . 1 . . 1 Scanalyzers 1 | . . 1 . . . . . . Garrison Access 1 | . . . . . . . . 1 Total Hacks 81 | . 2 14 . 10 28 2 . 25 Successful 47 | . 2 11 . 7 11 1 . 15 Failed 34 | . . 3 . 3 17 1 . 10 Catastrophic 2 | . . . . . 1 . . 1 Database Lockouts . | . . . . . . . . . Manual 31 | . 1 3 . 5 14 . . 8 Terminals 70 | . 2 10 . 8 26 2 . 22 Fabricators . | . . . . . . . . . Repair Stations 3 | . . . . 2 . . . 1 Recycling Units 3 | . . . . . 2 . . 1 Scanalyzers 4 | . . 4 . . . . . . Garrison Access 1 | . . . . . . . . 1 Terminal Hacks 27 | . 1 4 . 4 6 1 . 11 Record 5 | . . . . . 3 . . 2 Part Schematic 1 | . . . . . . . . 1 Robot Analysis 1 | . . . . . 1 . . . Prototype ID Bank 2 | . . . . 2 . . . . Open DSF 3 | . . . . . 1 1 . 1 Level Access Points 1 | . . . . . . . . 1 Branch Access Points 1 | . . 1 . . . . . . Terminal Index 2 | . . 1 . . . . . 1 Alert Level 3 | . 1 . . 1 . . . 1 Locate Traps 3 | . . 1 . 1 . . . 1 Disarm Traps 1 | . . . . . . . . 1 Maintenance Status 1 | . . . . . . . . 1 Investigation Status 1 | . . . . . 1 . . . Zone Layout 2 | . . 1 . . . . . 1 Fabricator Hacks . | . . . . . . . . . Repair Station Hacks 2 | . . . . 2 . . . . Scan Component 1 | . . . . 1 . . . . Repair 1 | . . . . 1 . . . . Recycling Unit Hacks 1 | . . . . . . . . 1 Report Inventory 1 | . . . . . . . . 1 Scanalyzer 4 | . . 4 . . . . . . Insert Component 2 | . . 2 . . . . . . Analyze 2 | . . 2 . . . . . . Garrison Access Hacks 1 | . . . . . . . . 1 Seal Access 1 | . . . . . . . . 1 Unauthorized Hacks 12 | . 1 3 . 1 5 . . 2 Terminals 12 | . 1 3 . 1 5 . . 2 Assimilate 1 | . . . . . 1 . . . Botnet 11 | . 1 3 . 1 4 . . 2 Fabricators . | . . . . . . . . . Repair Stations . | . . . . . . . . . Recycling Units . | . . . . . . . . . Scanalyzers . | . . . . . . . . . Garrison Access . | . . . . . . . . . Data Cores Recovered . | . . . . . . . . . Used . | . . . . . . . . . Hacking Detections 21 | . 1 4 . 3 7 1 . 5 Full Trace Events 7 | . . 2 . . 5 . . . Feedback Events . | . . . . . . . . . Feedback Blocked . | . . . . . . . . . Robot Schematics Acquired . | . . . . . . . . . Robots Built . | . . . . . . . . . Authchips . | . . . . . . . . . Time . | . . . . . . . . . Total Robot Build Rating . | . . . . . . . . . Part Schematics Acquired 3 | . . 2 . . . . . 1 Parts Built . | . . . . . . . . . Authchips . | . . . . . . . . . Time . | . . . . . . . . . Total Part Build Rating . | . . . . . . . . . Parts Repaired 1 | . . . . 1 . . . . Time 38 | . . . . 38 . . . . Parts Recycled . | . . . . . . . . . Recycled Matter . | . . . . . . . . . Retrieved Matter . | . . . . . . . . . Retrieved Components . | . . . . . . . . . Parts Scanalyzed 2 | . . 2 . . . . . . Part Schematics Acquired 2 | . . 2 . . . . . . Parts Damaged . | . . . . . . . . . Bothacking | -11 -10 -9 -9 -8 -7 -6 -6 -5 ------------ Run | Yrd Mat Mat Min Mat Fac Fac DSF Fac Used RIF Installer . | . . . . . . . . . Robots Hacked . | . . . . . . . . . Non-combat . | . . . . . . . . . Combat . | . . . . . . . . . Robot Hacks Applied . | . . . . . . . . . Relay Couplers Released . | . . . . . . . . . Fabnet Peak Effective % . | . . . . . . . . . Robots Rewired . | . . . . . . . . . Allies Hacked . | . . . . . . . . . Hacks Repelled . | . . . . . . . . . Allies | -11 -10 -9 -9 -8 -7 -6 -6 -5 -------- Run | Yrd Mat Mat Min Mat Fac Fac DSF Fac Total Allies . | . . . . . . . . . Largest Group . | . . . . . . . . . Highest-Rated Group . | . . . . . . . . . Highest-Rated Ally . | . . . . . . . . . Total Orders . | . . . . . . . . . Ally Attacks . | . . . . . . . . . Total Damage . | . . . . . . . . . Kills . | . . . . . . . . . Allies Corrupted . | . . . . . . . . . Allies Melted . | . . . . . . . . . Intel | -11 -10 -9 -9 -8 -7 -6 -6 -5 ------- Run | Yrd Mat Mat Min Mat Fac Fac DSF Fac Robot Analysis Total 1 | . . . . . 1 . . . Derelict Logs Recovered . | . . . . . . . . . Drone Launches . | . . . . . . . . . Drone Recoveries . | . . . . . . . . . Exploration | -11 -10 -9 -9 -8 -7 -6 -6 -5 ------------- Run | Yrd Mat Mat Min Mat Fac Fac DSF Fac Turns Passed 2224 | 126 206 471 219 276 442 32 14 438 Spaces Moved 2868 | 68 100 232 100 211 1004 95 48 1010 Core 38 | 8 . . . . . . . 30 Treads 567 | 60 100 232 98 77 . . . . Legs . | . . . . . . . . . Wheels . | . . . . . . . . . Hover . | . . . . . . . . . Flight 2263 | . . . 2 134 1004 95 48 980 Fastest Speed 25 | 50 160 160 160 34 31 28 28 25 Average Speed 58 | 147 160 160 164 94 34 28 28 28 Slowest Speed 380 | 160 160 160 380 320 112 31 28 120 Overloaded Moves . | . . . . . . . . . Propulsion Burnouts . | . . . . . . . . . Robots Hopped 10 | . . . . 1 4 . 1 4 Cave-ins Triggered . | . . . . . . . . . Exploration Rate (%) 25 | 5 24 27 31 22 38 2 50 27 Regions Visited 8 Branch Regions 1 Pre-discovered Areas . | . . . . . . . . . Known Exits Taken 4 | . . 1 . 1 1 1 . . Unknown Exits Taken 3 | 1 1 . 1 . . . . . Scrap Searched . | . . . . . . . . . Spaces Dug 21 | . . . . 2 13 . . 6 Terrain Destroyed 134 | . . 49 . 2 13 . . 70 Melee 21 | . . . . 2 13 . . 6 Projectile . | . . . . . . . . . AOE 113 | . . 49 . . . . . 64 Terrain Rammed . | . . . . . . . . . Walls Destroyed . | . . . . . . . . . Machines Disabled . | . . . . . . . . . Actions | -11 -10 -9 -9 -8 -7 -6 -6 -5 --------- Run | Yrd Mat Mat Min Mat Fac Fac DSF Fac Total 3224 | 90 119 281 127 279 1059 98 46 1125 Wait 83 | 8 1 1 4 42 6 . . 21 Move 2841 | 67 99 231 99 208 995 94 45 1003 Hop 9 | . . . . 1 4 . 1 3 Pick Up 40 | 7 3 5 1 3 7 . . 14 Fast Attach 48 | 5 2 1 2 4 10 2 . 22 Attach 15 | 2 . 1 1 3 3 1 . 4 Detach 6 | . . . . 2 . 1 . 3 Swap 13 | . . 4 2 4 . . . 3 Drop 46 | . . 8 2 7 11 . . 18 Fire 65 | 1 14 28 15 3 . . . 4 Melee 42 | . . . . 2 23 . . 17 Ram . | . . . . . . . . . Kick . | . . . . . . . . . Crush 3 | . . 2 1 . . . . . Escape Stasis 13 | . . . . . . . . 13 Rewire . | . . . . . . . . . Trap . | . . . . . . . . . Miscellaneous . | . . . . . . . . . Route ------- -11/Scrapyard -10/Materials -9/Materials -9/Mines -8/Materials -7/Factory -6/Factory (discovered 2 exits: *Low / DSF) -6/DSF -5/Factory (discovered 4 exits: Fac x4) History --------- Turn | Location | Event 2 | -11/Scrapyard | Met Revision 17 7 | -11/Scrapyard | Discovered new exit (range 16) 127 | -11/Scrapyard | Entered Materials 306 | -10/Materials | Build established: Mutant 328 | -10/Materials | Discovered new exit (range 4) 333 | -10/Materials | Entered another Materials area 333 | -9/Materials | Evolved 2 slots: Propulsion x1, Utility x1 581 | -9/Materials | Identified exit to Mines 804 | -9/Materials | Entered Mines 951 | -9/Mines | Discovered new exit (range 12) 1023 | -9/Mines | Entered Materials 1023 | -8/Materials | Evolved 2 slots: Utility x2 1196 | -8/Materials | Repaired Imp. Terrain Scanner 1289 | -8/Materials | Discovered new exit (range 16) 1299 | -8/Materials | Identified exit to Factory 1299 | -8/Materials | Entered Factory 1299 | -7/Factory | Evolved 2 slots: Propulsion x2 1413 | -7/Factory | Core integrity fell below 50% 1443 | -7/Factory | Lost 6 parts (1p3n2u) 1735 | -7/Factory | Discovered new exit (range 17) 1740 | -7/Factory | Identified exit to Factory 1741 | -7/Factory | Entered another Factory area 1741 | -6/Factory | Evolved 2 slots: Utility x2 1762 | -6/Factory | Discovered new exit (range 4) 1763 | -6/Factory | Identified exit to Lower Caves 1772 | -6/Factory | Identified exit to DSF 1773 | -6/Factory | Entered DSF 1781 | -6/DSF | Discovered new exit (range 19) 1786 | -6/DSF | Identified exit to Factory 1787 | -6/DSF | Entered Factory 1787 | -5/Factory | Evolved 2 slots: Propulsion x1, Utility x1 1849 | -5/Factory | Spotted B-75 Beast 1892 | -5/Factory | Found Prototype Launcher 1904 | -5/Factory | Identified exit to Factory 2008 | -5/Factory | Lost 8 parts (5n2u1w) 2042 | -5/Factory | Build established: Hacker-Sprinter 2197 | -5/Factory | Core integrity fell below 50% 2216 | -5/Factory | Core integrity fell below 20% 2225 | -5/Factory | Destroyed by S-27 Virus with Autogun Last Messages --------------- 02203_ S-27 Virus suffers critical hit (Impale). 02203_ S-27 Virus destroyed. 02205_ Hacking Suite destroyed. 02206_ Nuclear Pulse Thruster destroyed. 02208_ Acquired VTOL Module. 02208_ VTOL Module destroyed. 02210_ S-27 Virus destroyed. 02210_ Nuclear Pulse Thruster destroyed. 02210_ Mic. Fission Core destroyed. 02211_ Acquired VTOL Module. 02215_ S-27 Virus destroyed. 02217_ R-10 Processor collects VTOL Module. 02217_ Destroyed VTOL Module. 02219_ System Shield destroyed. 02219_ Slug penetrates Wall. 02222_ R-10 Processor collects Lgt. Nuclear Core. 02222_ Slug penetrates Wall. 02222_ VTOL Module destroyed. 02225_ S-27 Virus destroyed. Map ----- +----------------------------------------------------+ | # #???# #############??????# """" #? ????????????? | | # #???# #?????????# # ?????????????? | | # #???# ##############+### ?????????????? | | # #???# # + /??????????????? | | #???# + "" # #??????????????? | | #???# #### "" # #######+######+# | | #???# #??# "T # | | #+#####+# #??# "" # | | # #??# "" + | | ] # #??# # | | " " # #??# """""" + ^ | | "T" # #??# """""" ####+#########?????? | | """ ! # #??# """""" ## #??????????? | | ! # #??# """""" = ## #??????????? | | ######### #??# ## #??????????? | | ################## #??????????? | | + #??????????? | | "" """ """ ########## #??????????? | | "" """ """ #????????# #??????????? | | "" """ """ #????????# #??????????? | | ########## #??????????? | | "" """ ## ## #??????????? | | "" """ " F" [ / ## #??????????? | | "" """ """" %##s[* ## #??????????? | | ## %[% ## #??????????? | | #########"#R@% #########??????????? | | ###### # # s #??????????????????? | | ?????# # # s #??????????????????? | | ?????# / """ # #??????????????????? | | ?????# # ]! """ # #??????????????????? | | ###### # ]! """ # #??????????????????? | | # ! # #??????????????????? | | ########## #??????????????????? | | #????????# u #??????????????????? | | ????###+####??????????????????? | | #### ###### ??? ?????????????????????? | | ???# #????# ? ?????????????????????? | | ???# #????# """""? ?????????????????????? | | ??# #????# ""???? ?????????????????????? | | #?#+#????###+## ""???? ????????????????????? | | #?????????????? ???? ????????????????????? | | #?????????????? """??? ????????????????????? | | #??????????????? """??? ????????????????????? | | #??????????????? ""???? ????????????????????? | | #???????????????? ????? ????????????????????? | | ##??????????????????????? ?????????????????????? | | ?????????????????????????????????????????????????? | | ?????????????????????????????????????????????????? | | ?????????????????????????????????????????????????? | | ?????????????????????????????????????????????????? | +----------------------------------------------------+ Best States ------------- Heat Dissipation 40 Energy Generation 15 Energy Capacity 265 Matter Stores 300 Matter Capacity 300 Sight Range 20 Robot Scan Range 16 Terrain Scan Range 16 Terrain Scan Density 410 Additional Mass Support 12 Armor Coverage 150 Evasion (%) 65 Recoil Reduction 2 Offensive Hacking 34 Defensive Hacking 20 Item Schematics ----------------- Sensor Array | -9/Materials | Scanalyzed Lgt. Nuclear Core | -9/Materials | Scanalyzed Cld. VTOL Module | -5/Factory | Hacked Robot Schematics ------------------ None Fabricated ------------ Nothing Alien Tech Used ----------------- None Achievements -------------- None Challenges ------------ None Game ------ Seed AlphaHybridDoomcannon Manual? 0 Play Time 00:49:35 Cumulative 25.1 hours Start 2024.06.08 @ 01:26:58 End 2024.06.08 @ 02:16:54 Sessions 1 Manual Loads 0 Difficulty Rogue Special Mode None Game No. 25 Rogue 25 Adventurer 0 Explorer 0 Win Type - Total 0 Types 0/0/0/0/0/0/0/0/0 Lore% 23 Gallery% 25 Achievement% 22 Wizard Run 0 Options --------- Layout 1 ASCII 0 Keyboard 1 Movement Numpad Keybinds 0 Fullscreen 2 Font 24/Smallcaps Map View 50x35 Zoom Use 0% Tactical HUD 1 Map Filters NONE Filters NONE Steam 1 RUN: d0a1997e-48e0-44ee-b752-c37dbbc1768f